[Event "11th Festival Palmanova-A 2022"]
[Site "Strassoldo"]
[Date "2022.12.09"]
[Round "3.8"]
[White "Kalosha, Zhiulien Oleksii"]
[Black "Gschiel, Alexander"]
[Result "1-0"]
[ECO "B15"]
[WhiteElo "2092"]
[BlackElo "2322"]
[Annotator "TA"]
[PlyCount "79"]
[EventDate "2022.12.08"]
[EventType "swiss"]
[EventCountry "ITA"]
[SourceTitle "playchess.com"]
[Source "ChessBase"]
[SourceQuality "1"]
[TimeControl "5400+30"]

{[%evp 14,79,33,31,25,20,45,16,49,33,35,0,0,0,0,0,15,0,0,-1,0,0,24,4,36,0,63,7,14,25,154,144,158,82,100,105,92,52,66,62,140,70,102,92,112,115,138,64,125,79,134,145,150,90,86,72,102,50,302,104,419,423,906,766,2279,2032,29996,29997]} 1. e4 {[%emt 0:00:03]} c6 {[%emt 0:00:05]} 2. d4 {[%emt 0:00:09]} d5 {[%emt 0:00:07]} 3. Nc3 {[%emt 0:00:14]} dxe4 {[%emt 0:00:12]} 4. Nxe4 {[%emt 0:00:13]} Nf6 {[%emt 0:00:16]} 5. Nxf6+ {[%emt 0:00:17]} exf6 {[%emt 0:00:03]} 6. c3 {[%emt 0:00:32]} Bd6 {[%emt 0:00:16]} 7. Bd3 {[%emt 0:02:31]} O-O {[%emt 0:00:20]} 8. Qc2 {[%emt 0:01:40] Active counter play!} Re8+ {[%emt 0:00:09] B15: Caro-Kann: 3 Nc3: 3...g6 and 3...dxe4 4 Nxe4 Nf6 5 Nxf6+ exf6.} 9. Ne2 {[%emt 0:00:29]} h5 {[%emt 0:00:08]} 10. Be3 {[%emt 0:01:19]} Nd7 {[%emt 0:00:55][%cal Of6f5,Bb8d7,Bd7f8,Bf8e6][%mdl 32] The position is equal.} 11. O-O {[%emt 0:06:17]} h4 {[%emt 0:00:52][%cal Oh4h3]} 12. Bf4 {[%emt 0:20:43]} Nf8 {[%emt 0:02:11][%cal Oe8e2]} (12... Rxe2 $2 13. Qxe2 Bxf4 14. Qe4 $18) 13. Bxd6 {[%emt 0:03:55]} Qxd6 {[%emt 0:00:03] [#]} 14. h3 $146 {[%emt 0:01:08]} ({Predecessor:} 14. Qd2 Ne6 15. Rae1 Bd7 16. Bc4 h3 17. g3 Ng5 18. f3 Be6 19. d5 Bxd5 20. Bxd5 cxd5 {½-½ (105) Li,Y (1766)-Batista Rosas,N (1919) Nakhchivan 2022}) 14... Ne6 {[%emt 0:04:37]} 15. Qd2 {[%emt 0:17:45]} Bd7 {[%emt 0:10:49]} 16. Rfe1 {[%emt 0:03:05]} Rad8 {[%emt 0:00:34]} 17. Rad1 {[%emt 0:01:54]} Bc8 {[%emt 0:05:19]} 18. Bc2 {[%emt 0:11:26]} b5 {[%emt 0:06:32]} 19. b3 {[%emt 0:02:03]} Ba6 {[%emt 0:03:37]} (19... a5 $11) 20. Qd3 {[%emt 0:07:17]} (20. b4 $14) 20... g6 $11 {[%emt 0:02:16]} 21. Qe4 {[%emt 0:06:31]} c5 {[%emt 0:10:55]} (21... b4 $11) 22. Qxh4 $16 {[%emt 0:01:57]} Ng5 {[%emt 0:01:12]} 23. Bd3 {[%emt 0:06:52]} (23. dxc5 $142 Qxc5 24. Rxd8 Rxd8 25. b4) 23... c4 {[%emt 0:01:21]} 24. bxc4 {[%emt 0:01:52]} bxc4 {[%emt 0:00:02]} 25. Bb1 {[%emt 0:00:36]} (25. Bc2 {simplifies} Bb7 26. Qg3 Qxg3 27. Nxg3 f5 28. Rxe8+ Rxe8 29. Nf1) 25... Bb7 {[%emt 0:00:07][%cal Ob7g2] Hoping for ...Bxg2!} 26. Qg3 {[%emt 0:00:52]} (26. Qg4 {keeps more tension.} Kg7 27. h4 Ne4 28. Ng3) 26... Qe6 {[%emt 0:02:50]} (26... Ne6 $14) 27. Kf1 {[%emt 0:01:27]} (27. f3 $16) 27... Ne4 {[%emt 0:02:17] Against h4} 28. Bxe4 {[%emt 0:00:37]} (28. Qf4 {simplifies} f5 29. Bc2 Qd6 30. Qxd6 Rxd6 31. f3) 28... Qxe4 {[%emt 0:00:01]} 29. Nf4 {[%emt 0:00:34]} Qc2 {[%emt 0:00:11]} 30. a3 {[%emt 0:00:33]} (30. Rc1 $16 Rxe1+ 31. Rxe1) 30... Be4 {[%emt 0:01:57]} (30... Kh7 $14) 31. Kg1 {[%emt 0:00:26]} ({Better is} 31. Nh5 $1 {[%cal Rh5f6]} Re6 32. Kg1) 31... Bd3 {[%emt 0:00:38]} (31... Kh7 $142) 32. Nh5 $1 {[%emt 0:00:33]} Re6 {[%emt 0:01:20]} 33. Kh2 {[%emt 0:00:34]} (33. Rb1 $142 $1) 33... Rb6 {[%emt 0:05:52]} 34. Rc1 $36 {[%emt 0:00:29][%mdl 2048] Keeping Black busy.} Qb2 {[%emt 0:00:32]} 35. Nf4 {[%emt 0:00:20]} (35. a4 $16) 35... Bf5 $2 {[%emt 0:00:12][%mdl 8192] [#]} (35... Rb3 $14) 36. a4 $2 {[%emt 0:00:32]} (36. Nd5 $1 $18 {[%mdl 512] is the precise move to win.}) 36... a5 $2 {[%emt 0:00:41][%mdl 8192] [#]} (36... Kf8 $16 {is tougher.} 37. Qf3 (37. Qe3 Qa3 $16) 37... Qa3) 37. Nd5 $1 $18 {[%emt 0:00:29][%cal Bf4d5,Bd5f6,Bf6e8][%mdl 544]} Rb7 {[%emt 0:01:06] Against Qc7} (37... Rxd5 {leads to mate.} 38. Re8+ Kg7 {[#]} 39. Qh4 $1 g5 40. Qh8+ Kg6 41. Rg8#) (37... Re6 $142) (37... Kf8 38. Qf4) 38. Nxf6+ {[%emt 0:00:09]} Kf8 {[%emt 0:00:49]} 39. Qh4 {[%emt 0:00:16][%cal Rh4h8]} Kg7 {[%emt 0:00:26] Against Qh8+} 40. Ne8+ {[%emt 0:00:29] Weighted Error Value: White=0.30/Black=0.67} 1-0

[Event "11th Festival Palmanova-A 2022"]
[Site "Strassoldo"]
[Date "2022.12.09"]
[Round "3.9"]
[White "Neuschmied, Siegfried"]
[Black "Siraj, Svit"]
[Result "1-0"]
[ECO "C76"]
[WhiteElo "2244"]
[BlackElo "2114"]
[Annotator "TA"]
[PlyCount "95"]
[EventDate "2022.12.08"]
[EventType "swiss"]
[EventCountry "ITA"]
[SourceTitle "playchess.com"]
[Source "ChessBase"]
[SourceQuality "1"]
[TimeControl "5400+30"]

{[%evp 14,95,32,32,43,47,57,20,35,21,75,47,36,32,46,19,15,18,13,5,3,0,32,0,76,68,103,0,0,0,0,-19,-13,-21,-11,-16,0,0,95,91,82,77,79,89,85,84,73,54,129,112,160,132,118,119,168,156,131,160,164,164,150,136,220,212,206,202,369,340,581,575,528,524,987,987,829,125,1882,1551,12805,12806,12802,12801,29967,5120]} 1. e4 {[%emt 0:00:04]} e5 {[%emt 0:00:06]} 2. Nf3 {[%emt 0:00:05]} Nc6 {[%emt 0:00:04]} 3. Bb5 {[%emt 0:00:06]} a6 {[%emt 0:00:05]} 4. Ba4 {[%emt 0:00:06]} d6 {[%emt 0:00:04]} 5. c3 {[%emt 0:01:42]} Bd7 {[%emt 0:00:18]} 6. O-O {[%emt 0:00:14]} g6 {[%emt 0:00:05]} 7. d4 {[%emt 0:00:19]} Bg7 {[%emt 0:00:18]} 8. Be3 {[%emt 0:00:53]} b5 {[%emt 0:00:32] C76: Ruy Lopez: Deferred Steinitz: 5 c3 Bd7 6 d4 g6.} 9. Bc2 {[%emt 0:02:53]} Nf6 {[%emt 0:01:08]} 10. h3 {[%emt 0:01:36]} O-O {[%emt 0:00:17] The position is equal.} 11. Nbd2 {[%emt 0:02:21]} Rc8 {[%emt 0:06:45]} (11... a5 $11) 12. a3 {[%emt 0:24:36]} Re8 {[%emt 0:03:11]} 13. Re1 {[%emt 0:08:13] [#]} Na5 $146 {[%emt 0:01:43]} ({Predecessor:} 13... Nb8 14. b4 exd4 15. cxd4 Bc6 16. Bg5 h6 17. Bh4 g5 18. Bg3 Bb7 19. Rc1 Re7 {1-0 (63) Agopov,M (2422)-Hallman,V (2214) Finland 2019}) 14. dxe5 {[%emt 0:03:41]} dxe5 {[%emt 0:00:31]} 15. b4 {[%emt 0:00:04]} Nb7 {[%emt 0:00:31]} 16. a4 {[%emt 0:02:32]} c5 {[%emt 0:05:30]} 17. axb5 {[%emt 0:00:41]} axb5 {[%emt 0:00:09]} 18. Ra7 {[%emt 0:00:38]} Bc6 {[%emt 0:01:07]} (18... Rc7 $11) 19. bxc5 $16 {[%emt 0:05:04] White is more active.} Bf8 {[%emt 0:01:23]} 20. Qa1 {[%emt 0:02:30]} (20. Bb3 $1 $16) 20... Bxc5 $11 {[%emt 0:02:24]} 21. Bxc5 {[%emt 0:01:48]} Nxc5 {[%emt 0:01:01]} 22. Qa3 {[%emt 0:01:03]} Qb6 {[%emt 0:05:30]} ({But not} 22... Ne6 23. Rd1 Nd7 24. Bb3 $11) 23. Qa2 {[%emt 0:01:00]} Rc7 {[%emt 0:01:13]} 24. Ra3 {[%emt 0:00:39]} Rd7 {[%emt 0:06:20]} 25. Qb1 {[%emt 0:01:10]} Red8 {[%emt 0:02:36]} (25... Qb7 $11 {remains equal.}) 26. Nc4 $16 {[%emt 0:00:52]} Qc7 {[%emt 0:02:44]} 27. Ncxe5 {[%emt 0:00:29] Black must now prevent Qb4.} Re7 {[%emt 0:00:48]} 28. Nxc6 {[%emt 0:01:03]} (28. Ra7 {seems wilder.} Bb7 29. Qxb5 Ra8 30. Rxa8+ Bxa8 31. Ng4) 28... Qxc6 {[%emt 0:00:07]} 29. e5 {[%emt 0:03:39]} Nfd7 {[%emt 0:01:23]} 30. Ra5 {[%emt 0:03:35]} Rde8 {[%emt 0:00:55]} ({Black should try} 30... Rc8 $14) 31. Qxb5 {[%emt 0:01:31]} Qc7 {[%emt 0:01:05]} (31... Qxb5 $142 32. Rxb5 Nxe5 33. Nxe5 (33. Rxc5 $2 {perishes.} Nxf3+ 34. gxf3 Rxe1+ 35. Kg2 R8e5 $19) 33... Rxe5 34. Rxe5 Rxe5) 32. Raa1 {[%emt 0:01:44]} Kf8 {[%emt 0:04:16][%cal Rd7e5] [#]} 33. Qa5 $1 {[%emt 0:03:23]} Nxe5 {[%emt 0:05:32]} (33... Qxa5 $16 34. Rxa5 Nxe5 35. Nxe5 (35. Rxc5 $2 {loses.} Nxf3+ 36. gxf3 Rxe1+ 37. Kg2 R1e5 $19) 35... Rxe5 36. Rxe5 Rxe5) 34. Nxe5 {[%emt 0:00:54]} Qxa5 {[%emt 0:00:07]} 35. Rxa5 {[%emt 0:00:10]} Rxe5 {[%emt 0:00:14]} 36. Rxe5 {[%emt 0:00:44]} Rxe5 {[%emt 0:00:05][%mdl 4096] Endgame KRB-KRN} 37. Kf1 {[%emt 0:01:06] Inhibits Re1+.} g5 {[%emt 0:03:08]} (37... Nd7 $16 38. Rxe5 Nxe5) 38. Bxh7 {[%emt 0:02:21]} f5 {[%emt 0:02:55]} 39. g4 {[%emt 0:01:02]} f4 {[%emt 0:00:06]} (39... fxg4 40. hxg4 Nd7 41. Ra8+ Kf7) 40. Kg2 $18 {[%emt 0:00:43]} Kg7 $2 {[%emt 0:00:42]} (40... Nd7) 41. Bf5 {[%emt 0:01:18]} Kf6 {[%emt 0:01:52]} 42. Rb5 {[%emt 0:01:30] Inhibits Nb3.} Na4 {[%emt 0:02:24]} 43. Rxe5 {[%emt 0:02:00]} Kxe5 {[%emt 0:00:06]} 44. c4 $2 {[%emt 0:00:03]} (44. h4 $18 {is the precise move to win.} gxh4 45. Kh3) 44... Nb2 $2 {[%emt 0:00:09][%mdl 8192] Loses the game.} (44... Kf6 $16 45. Kf3 Ke5) 45. c5 {[%emt 0:00:38][%cal Oh3h4] Hoping for h4!} Kd5 {[%emt 0:00:06] Inhibits h4.} 46. h4 {[%emt 0:02:21]} gxh4 {[%emt 0:00:29]} 47. g5 {[%emt 0:00:41] White wants to mate with g6.} Ke5 {[%emt 0:01:20] [#] Prevents g6.} 48. g6 $1 {[%emt 0:00:37] Weighted Error Value: White=0.31/Black=0.48} 1-0

[Event "11th Festival Palmanova-A 2022"]
[Site "Strassoldo"]
[Date "2022.12.09"]
[Round "3.10"]
[White "Iolis, Oleg"]
[Black "Piangerelli, Michele"]
[Result "1-0"]
[ECO "C77"]
[WhiteElo "2212"]
[BlackElo "2017"]
[Annotator "TA"]
[PlyCount "47"]
[EventDate "2022.12.08"]
[EventType "swiss"]
[EventCountry "ITA"]
[SourceTitle "playchess.com"]
[Source "ChessBase"]
[SourceQuality "1"]
[TimeControl "5400+30"]

{[%evp 17,46,37,33,34,42,25,37,41,50,32,41,39,154,109,113,119,168,142,189,122,107,118,469,477,462,365,1361,1306,29997,29998,29999]} 1. e4 {[%emt 0:00:03]} e5 {[%emt 0:03:44]} 2. Nf3 {[%emt 0:00:04]} Nc6 {[%emt 0:00:04]} 3. Bb5 {[%emt 0:00:04]} Nf6 {[%emt 0:00:38]} 4. d3 {[%emt 0:00:40]} d6 {[%emt 0:01:08]} 5. c3 {[%emt 0:02:00]} Be7 {[%emt 0:00:16]} 6. O-O {[%emt 0:00:21]} O-O {[%emt 0:00:07]} 7. Nbd2 {[%emt 0:00:46]} a6 {[%emt 0:00:06]} 8. Ba4 {[%emt 0:00:10]} b5 {[%emt 0:00:04]} 9. Bc2 {[%emt 0:00:45]} d5 {[%emt 0:01:36]} 10. Re1 {[%emt 0:00:28] C77: Ruy Lopez: 3...a6 4 Ba4 Nf6, unusual lines.} dxe4 {[%emt 0:03:44]} 11. dxe4 {[%emt 0:00:11]} Re8 {[%emt 0:01:09]} 12. Qe2 {[%emt 0:02:23] White is slightly better.} Bc5 {[%emt 0:02:11] [#]} 13. b4 $146 {[%emt 0:01:54]} ({Predecessor:} 13. Nf1 h6 14. Be3 Qe7 15. a4 Na7 16. b4 Bxe3 17. Nxe3 c5 18. Rab1 cxb4 19. cxb4 Bd7 20. a5 Nc6 21. Qd2 Bg4 22. Nxg4 {½-½ (22) Doric,N (2267)-Glazar,D (2048) Zagreb 2016}) 13... Bb6 {[%emt 0:00:38]} 14. a4 {[%emt 0:00:09]} bxa4 {[%emt 0:06:49]} (14... Be6 $14) 15. Bxa4 {[%emt 0:00:18]} Bd7 {[%emt 0:14:56]} 16. Nc4 $36 {[%emt 0:00:22][%mdl 2048] Black must now prevent Rd1. White is really pushing.} Nb8 {[%emt 0:04:27]} (16... Ne7 $16 {keeps fighting.}) 17. Rd1 {[%emt 0:03:41]} ({But not} 17. Nfxe5 Bxa4 18. Rxa4 Re6 $16) 17... Qc8 {[%emt 0:07:55] [#]} (17... Qe7 $16 18. Bg5 (18. Ncxe5 Bxa4 19. Rxa4 Nbd7 $16) 18... Bxa4 19. Rxa4 h6) 18. Nfxe5 {[%emt 0:05:24]} ({Don't play} 18. Ncxe5 Bxa4 19. Rxa4 Qe6 $16) (18. Bb3 $1 $18) 18... Bxa4 $16 {[%emt 0:00:10]} 19. Rxa4 {[%emt 0:00:04]} Rxe5 $4 {[%emt 0:00:21][%mdl 8192] Loses the game.} 20. Nxe5 $18 {[%emt 0:00:43]} Qe8 {[%emt 0:00:01]} 21. Ng4 {[%emt 0:00:46] aiming for Nxf6+.} Qxa4 $2 {[%emt 0:01:00] [#]} (21... Nbd7) 22. Nxf6+ {[%emt 0:00:16]} gxf6 {[%emt 0:00:58]} 23. Rd8+ {[%emt 0:00:08]} Kg7 {[%emt 0:00:06]} 24. Qg4# {[%emt 1:20:50] Weighted Error Value: White=0.31/Black=0.84} 1-0

[Event "11th Festival Palmanova-A 2022"]
[Site "Strassoldo"]
[Date "2022.12.09"]
[Round "3.12"]
[White "Perossa, Nicolas"]
[Black "Laco, Giuseppe"]
[Result "1-0"]
[ECO "B30"]
[WhiteElo "2195"]
[BlackElo "1913"]
[Annotator "TA"]
[PlyCount "95"]
[EventDate "2022.12.08"]
[EventType "swiss"]
[EventCountry "ITA"]
[SourceTitle "playchess.com"]
[Source "ChessBase"]
[SourceQuality "1"]
[TimeControl "5400+30"]

{[%evp 10,95,54,54,53,52,79,86,79,66,69,57,83,70,65,66,93,93,108,108,125,123,143,114,140,84,261,259,258,258,239,196,208,149,246,240,266,272,346,347,341,335,350,343,536,518,666,662,659,659,767,744,757,734,1009,1004,968,983,890,485,500,500,622,620,589,576,568,554,687,656,731,724,806,783,940,956,955,942,892,834,1000,779,984,908,852,760,1155,798]} 1. e4 {[%emt 0:00:02]} c5 {[%emt 0:00:09]} 2. Nf3 {[%emt 0:00:08]} Nc6 {[%emt 0:00:37]} 3. Bb5 {[%emt 0:00:08]} a6 {[%emt 0:00:37]} 4. Bxc6 {[%emt 0:00:08]} bxc6 {[%emt 0:00:50]} 5. O-O {[%emt 0:01:11]} d5 {[%emt 0:00:54]} 6. d3 {[%emt 0:00:41]} e6 {[%emt 0:01:26] B30: Sicilian: 2...Nc6 3 Bb5, lines without ...g6.} 7. Nc3 {[%emt 0:03:26]} h6 {[%emt 0:01:15]} 8. b3 {[%emt 0:05:20] [#]} Nf6 $146 {[%emt 0:01:36] White is better.} ({Predecessor:} 8... Ne7 9. a4 Ng6 10. Re1 d4 11. Ne2 e5 12. Ng3 Qf6 13. Nh5 Qd8 14. h3 Rh7 {1-0 (38) Hozdic,I (1546)-Bogataj,T (1610) Ljubljana 2009}) 9. Qe1 {[%emt 0:02:17]} Qc7 {[%emt 0:02:05]} 10. Ba3 {[%emt 0:09:05]} a5 {[%emt 0:03:50]} 11. e5 {[%emt 0:13:44]} Nd7 {[%emt 0:01:06]} 12. Na4 $1 {[%emt 0:00:16]} g5 {[%emt 0:06:26]} 13. h3 {[%emt 0:05:59] White is more active.} Rg8 {[%emt 0:05:52]} 14. Qe3 {[%emt 0:02:02]} g4 {[%emt 0:05:18]} 15. hxg4 {[%emt 0:02:09]} Rxg4 {[%emt 0:00:23]} 16. Nh2 {[%emt 0:02:15]} ({Weaker is} 16. Bxc5 Nxc5 17. Nxc5 d4 18. Nxd4 Bxc5 19. Nxe6 Bxe6 $17) ({Not} 16. Nxc5 d4 17. Nxd7 Kxd7 $15) 16... d4 {[%emt 0:03:25] [#]} 17. Qe2 {[%emt 0:06:56]} (17. Qh3 $142 $1 Rg7 18. f4 (18. Qxh6 $2 {perishes.} Rxg2+ 19. Kxg2 Bxh6 $19)) 17... Rf4 {[%emt 0:08:30] A mistake that costs the game.} (17... Rg7 $16 {keeps fighting.}) 18. Bc1 $18 {[%emt 0:01:20]} Rf5 {[%emt 0:01:25]} 19. f4 {[%emt 0:00:31]} h5 {[%emt 0:00:38]} 20. Nf3 {[%emt 0:01:51][%cal Bh2f3,Bf3d2,Bd2e4,Be4g3,Bg3f5][%mdl 32] And now Ng5 would win.} Be7 {[%emt 0:00:25]} 21. Nb2 {[%emt 0:06:25]} Nb6 {[%emt 0:04:01]} (21... Ba6 $16 22. Bd2 Nb6 23. Bxa5 Bxd3 24. Nxd3 Rxa5) 22. Nd2 {[%emt 0:03:11]} Nd5 {[%emt 0:01:00]} 23. Ne4 {[%emt 0:01:07]} Ba6 {[%emt 0:01:03]} 24. Ng3 {[%emt 0:01:08][%csl LRf5,LRh5] Prevents h4.} h4 {[%emt 0:09:54]} 25. Nxf5 {[%emt 0:00:45]} exf5 {[%emt 0:00:02]} 26. Nc4 {[%emt 0:01:58]} Bxc4 {[%emt 0:06:43]} (26... Qc8 $142 27. Qh5 Qe6 28. Qh8+ Bf8) 27. bxc4 {[%emt 0:01:07] White is clearly winning.} Nb6 {[%emt 0:02:21]} 28. Bd2 {[%emt 0:01:35]} Qc8 {[%emt 0:04:59]} 29. Rab1 {[%emt 0:01:10]} Nd7 {[%emt 0:00:25]} 30. Qh5 {[%emt 0:03:09] [#] Threatens to win with e6.} Nf8 {[%emt 0:01:05] Against e6} 31. a4 {[%emt 0:00:52]} Ng6 {[%emt 0:01:22]} 32. Rfe1 {[%emt 0:01:11]} Qe6 {[%emt 0:02:17]} 33. Rb7 {[%emt 0:00:55]} Kf8 {[%emt 0:00:29]} 34. Reb1 {[%emt 0:01:43]} Kg7 {[%emt 0:03:28]} 35. Rb8 {[%emt 0:00:10]} Ra7 {[%emt 0:05:38]} 36. Qf3 {[%emt 0:03:42]} Qd7 {[%emt 0:02:51]} 37. R8b6 {[%emt 0:00:58][%cal Bb8b6,Bb6c6,Bc6c5,Bc5b5,Bb5b7][%mdl 32]} Rc7 {[%emt 0:00:31]} 38. R1b3 {[%emt 0:02:39]} f6 {[%emt 0:01:40]} 39. exf6+ {[%emt 0:00:39]} Bxf6 {[%emt 0:00:22]} 40. Bxa5 {[%emt 0:01:29]} Ra7 {[%emt 0:01:37]} 41. Bd2 {[%emt 0:00:34]} Bd8 {[%emt 0:00:55]} 42. Rxc6 {[%emt 0:03:58]} Ne7 {[%emt 0:03:16]} 43. Rxc5 {[%emt 0:00:16]} Qxa4 {[%emt 0:00:23]} 44. Rcb5 {[%emt 0:01:54]} Qa6 {[%emt 0:01:27]} 45. Qf2 {[%emt 0:00:52]} Qf6 {[%emt 0:00:30]} 46. Rb7 {[%emt 0:01:02]} Ra1+ {[%emt 0:00:34]} 47. Rb1 {[%emt 0:00:11]} Ra6 {[%emt 0:01:06]} 48. Be1 {[%emt 0:00:39] Weighted Error Value: White=0.33/Black=0.47} 1-0

[Event "11th Festival Palmanova-A 2022"]
[Site "Strassoldo"]
[Date "2022.12.10"]
[Round "4.2"]
[White "Loiacono, Leonardo"]
[Black "Titze, Leo"]
[Result "1-0"]
[ECO "E38"]
[WhiteElo "2271"]
[BlackElo "2252"]
[Annotator "TA"]
[PlyCount "133"]
[EventDate "2022.12.08"]
[EventType "swiss"]
[EventCountry "ITA"]
[SourceTitle "playchess.com"]
[Source "ChessBase"]
[SourceQuality "1"]
[TimeControl "5400+30"]

{[%evp 18,133,50,25,130,129,227,226,226,172,218,188,190,170,211,175,168,147,200,196,198,184,198,204,200,211,196,177,165,178,199,202,199,205,192,189,244,218,226,222,277,282,246,215,260,234,297,290,290,289,303,250,253,231,227,219,259,259,257,87,244,248,267,267,267,267,267,261,233,233,371,371,363,346,371,371,363,346,351,326,363,358,317,310,363,288,356,348,334,297,4171,4171,4171,4171,4171,4171,4171,4171,4171,4171,4171,4170,4170,4170,4156,4156,4163,4163,4156,4156,4156,4149,4149,4145,4145,4141,818,526]} 1. d4 {[%emt 0:00:04]} Nf6 {[%emt 0:00:06]} 2. c4 {[%emt 0:00:03]} e6 {[%emt 0:00:03]} 3. Nc3 {[%emt 0:00:03]} Bb4 {[%emt 0:00:04]} 4. Qc2 {[%emt 0:00:04]} c5 {[%emt 0:00:32]} 5. dxc5 {[%emt 0:00:09]} Na6 {[%emt 0:00:08][%cal Bb8a6,Ba6c5,Bc5e4][%mdl 32]} 6. a3 {[%emt 0:00:32]} Bxc3+ {[%emt 0:00:08]} 7. Qxc3 {[%emt 0:00:13]} Nxc5 {[%emt 0:00:04]} 8. b4 {[%emt 0:00:26]} Nce4 {[%emt 0:00:06]} 9. Qd4 {[%emt 0:00:25]} d5 {[%emt 0:00:07]} 10. c5 {[%emt 0:00:24] [#]} a5 $146 {[%emt 0:00:06] E38: Nimzo-Indian: Classical: 4...c5.} (10... b6 $1 $11) ({Predecessor:} 10... b6 11. cxb6 axb6 12. Bb2 O-O 13. f3 Nd6 14. e3 e5 15. Qxe5 Re8 16. Qg5 d4 17. Bxd4 Nf5 18. Bxf6 {1-0 (31) Gareyev,T (2573)-Adly,A (2596) Warsaw 2021}) 11. f3 $16 {[%emt 0:08:57][%cal Bf2f3,Bf3e4][%mdl 32]} b6 {[%emt 0:00:31]} 12. fxe4 $18 {[%emt 0:03:34]} axb4 {[%emt 0:00:15] White is clearly better.} 13. axb4 {[%emt 0:08:28]} Rxa1 {[%emt 0:00:19]} (13... bxc5 $142 14. bxc5 Rxa1 15. Qxa1 O-O) 14. Qxa1 {[%emt 0:00:05]} bxc5 {[%emt 0:00:28]} 15. bxc5 {[%emt 0:07:35]} Nxe4 {[%emt 0:01:27]} 16. Nf3 {[%emt 0:01:17]} (16. Qxg7 $2 {is the wrong capture.} Qa5+ 17. Kd1 Qa4+ 18. Ke1 Qb4+ 19. Kd1 Bd7 20. Qxh8+ Ke7 $19) 16... O-O {[%emt 0:00:12]} 17. e3 {[%emt 0:02:35]} f6 {[%emt 0:00:48]} (17... Bb7 $16 18. Be2 Qa8) 18. Be2 {[%emt 0:01:54]} Nxc5 {[%emt 0:01:20]} 19. O-O {[%emt 0:02:40] [#] Black must now prevent Ba3.} Rf7 {[%emt 0:06:36]} 20. Qa8 {[%emt 0:13:23] Strongly threatening Ba3.} Qb6 {[%emt 0:06:11]} 21. Bd2 {[%emt 0:09:15][%cal Bc1d2,Bd2a5,Ba5b4][%mdl 32]} ({Worse is} 21. Qxc8+ Rf8 $11) 21... Rf8 {[%emt 0:11:52]} 22. Qa5 {[%emt 0:02:15] Prevents Ba6.} Qxa5 {[%emt 0:02:27]} 23. Bxa5 {[%emt 0:00:05] aiming for Bb4.} Ne4 {[%emt 0:01:44]} 24. Bb4 {[%emt 0:03:15]} Rd8 {[%emt 0:00:11]} 25. Ra1 {[%emt 0:01:39]} Bd7 {[%emt 0:02:24]} 26. Nd2 {[%emt 0:03:08]} Ng5 {[%emt 0:03:47]} (26... Nxd2 $142 27. Bxd2 Rb8) 27. Ra7 {[%emt 0:05:54]} Rb8 {[%emt 0:07:23]} 28. Ba3 {[%emt 0:02:04]} Be8 {[%emt 0:01:51]} 29. h4 {[%emt 0:00:55]} Nf7 {[%emt 0:00:08]} 30. Re7 {[%emt 0:03:41]} e5 {[%emt 0:02:13]} 31. Bf3 {[%emt 0:02:50]} e4 {[%emt 0:03:22]} 32. Bg4 {[%emt 0:04:50] Hoping for Be6.} Nh6 {[%emt 0:01:05]} 33. Bh3 {[%emt 0:03:43]} Bh5 {[%emt 0:03:32]} 34. Bd6 {[%emt 0:01:00]} Ra8 {[%emt 0:01:47]} 35. Bf4 {[%emt 0:01:17] And now Bxh6 would win.} Ng4 {[%emt 0:02:02]} 36. Bxg4 {[%emt 0:00:35]} Ra1+ {[%emt 0:01:16]} 37. Kh2 {[%emt 0:02:08]} Bxg4 {[%emt 0:00:02]} 38. Re8+ {[%emt 0:01:38]} Kf7 {[%emt 0:00:16]} 39. Rd8 {[%emt 0:00:04]} Ra5 {[%emt 0:07:43]} 40. Kg3 {[%emt 0:01:43]} h5 {[%emt 0:00:15]} 41. Nb3 {[%emt 0:00:23]} Rb5 {[%emt 0:00:08]} 42. Rb8 {[%emt 0:00:09]} Rxb8 {[%emt 0:00:13]} 43. Bxb8 {[%emt 0:00:04]} g5 {[%emt 0:00:11]} (43... Bc8 {was called for.} 44. Kf4 Bd7) 44. Bc7 {[%emt 0:01:28]} Ke8 {[%emt 0:00:49]} 45. Nd4 {[%emt 0:00:34]} Kd7 {[%emt 0:00:20]} 46. Ba5 {[%emt 0:00:18]} Ke8 {[%emt 0:00:28]} 47. Be1 {[%emt 0:00:51]} Kd7 {[%emt 0:00:32]} 48. Kh2 {[%emt 0:00:21]} Kc7 {[%emt 0:00:28]} 49. Ba5+ {[%emt 0:00:19]} Kd7 {[%emt 0:00:04]} 50. g3 {[%emt 0:00:09]} Kd6 {[%emt 0:00:56]} 51. Bb4+ {[%emt 0:00:28]} Ke5 {[%emt 0:00:37]} 52. hxg5 {[%emt 0:01:25]} fxg5 {[%emt 0:00:02]} 53. Be7 {[%emt 0:00:08]} h4 $2 {[%emt 0:00:08]} (53... Bd7 54. Bxg5 Kd6) 54. gxh4 {[%emt 0:00:08] White is clearly winning.} gxh4 {[%emt 0:00:04]} 55. Bxh4 {[%emt 0:00:03]} Kd6 {[%emt 0:00:32]} 56. Kg3 {[%emt 0:00:21]} Bd1 {[%emt 0:00:10]} 57. Kf4 {[%emt 0:00:08]} Kc5 {[%emt 0:00:16]} 58. Bf6 {[%emt 0:00:53]} Kc4 {[%emt 0:00:09]} 59. Nc6 {[%emt 0:00:57]} Kc5 {[%emt 0:02:01]} 60. Ne7 {[%emt 0:00:18]} Kd6 {[%emt 0:00:22]} 61. Nf5+ {[%emt 0:00:18]} Ke6 {[%emt 0:00:16] [#]} 62. Bb2 $1 {[%emt 0:00:10]} Ba4 {[%emt 0:00:17]} 63. Nd4+ {[%emt 0:00:19]} Kf6 {[%emt 0:00:15]} 64. Nb3+ {[%emt 0:00:21]} Kg6 {[%emt 0:01:03]} 65. Nc5 {[%emt 0:00:09]} Bb5 {[%emt 0:00:07]} 66. Ke5 {[%emt 0:00:10]} Bc4 {[%emt 0:00:08]} 67. Ne6 {[%emt 0:08:18] Black did not feel at home in the position after the opening.   Weighted Error Value: White=0.10 (very precise) /Black=0.24 (precise)} 1-0